Cogmind - Beta 17.1 @@@ ROGUE MODE // 2026.09.07 @ 19:00:32 Player: Rockstar Result: Destroyed by G-47 Trooper with Particle Gun Performance ------------- Evolutions (2) 1000 Regions Visited (4) 800 Robots Destroyed (50) 250 Value Destroyed (1677) 1677 Prototype IDs (1) 20 Alien Tech Used (0) 0 Bonus (99) 99 TOTAL SCORE: 3846 Bonus ------- Follower Combat Kills 99 Cogmind --------- Core Integrity 0/550 Matter 300/300 Energy 98/100 System Corruption 0% Temperature Cool (9) Movement Core (50) Location -8/Materials Parts ------- > --- POWER (2) -------- (None) > --- PROPULSION (3) --- (None) > --- UTILITY (4) ------ Improved Cooling System Improved Targeting Computer > --- WEAPON (2) ------- (None) > --- INVENTORY (5) ---- Heat Sink Improved Heat Sink Improved Targeting Computer Advanced EMP Blaster Maul Peak State ------------ > --- POWER ------------ Deuterium Engine Light Deuterium Engine > --- PROPULSION ------- Aluminum Leg Aluminum Leg Improved Aluminum Leg > --- UTILITY ---------- Improved Heat Sink Small Storage Unit Advanced Weight Redist. System Targeting Computer > --- WEAPON ----------- Medium Laser Particle Cannon > --- INVENTORY -------- Ion Engine Aluminum Leg Aluminum Leg Heat Sink Medium Armor Plating Small Laser Heavy Assault Rifle Plasma Cutter [Rating: 22] Favorites ----------- Power Ion Engine Engine Ion Engine Propulsion Aluminum Leg Leg Aluminum Leg Utility Small Storage Unit Device Heat Sink Storage Small Storage Unit Processor Targeting Computer Protection Medium Armor Plating Weapon Medium Laser Energy Gun Medium Laser Energy Cannon Particle Cannon Ballistic Gun Heavy Assault Rifle Launcher Advanced EMP Blaster Impact Weapon Maul Build | -11 -10 -10 -9 -8 ------- Run | Yrd Mat Min Mat Mat Slots Evolved 4 | . . . 2 2 Power 1 | . . . . 1 Propulsion 1 | . . . . 1 Utility 2 | . . . 2 . Weapon . | . . . . . Parts Attached 48 | 6 5 10 10 17 Power 10 | 1 . 2 4 3 Engine 10 | 1 . 2 4 3 Core . | . . . . . Reactor . | . . . . . Propulsion 14 | 2 2 5 3 2 Treads . | . . . . . Leg 14 | 2 2 5 3 2 Wheel . | . . . . . Hover . | . . . . . Flight . | . . . . . Utility 14 | 1 3 1 2 7 Device 9 | . 2 1 1 5 Storage 2 | 1 . . 1 . Processor 2 | . 1 . . 1 Hackware . | . . . . . Protection 1 | . . . . 1 Artifact . | . . . . . Weapon 10 | 2 . 2 1 5 Energy Gun 5 | 2 . 2 . 1 Energy Cannon 1 | . . . 1 . Ballistic Gun 2 | . . . . 2 Ballistic Cannon . | . . . . . Launcher 1 | . . . . 1 Special Weapon . | . . . . . Impact Weapon 1 | . . . . 1 Slashing Weapon . | . . . . . Piercing Weapon . | . . . . . Special Melee Weapon . | . . . . . Unidentified Prototypes 1 | . . . . 1 Parts Lost 17 | . . 1 . 16 Power 3 | . . . . 3 Propulsion 5 | . . . . 5 Utility 4 | . . . . 4 Weapon 5 | . . 1 . 4 Highest Loss Streak 11 | . . 1 . 11 To Critical Strikes . | . . . . . Average Backups 6 | . 3 7 7 6 Power 1 | . 1 1 1 . Propulsion 1 | . 1 2 2 1 Utility 1 | . 1 2 . 2 Weapon 1 | . . . 2 2 Tool/Special . | . . . . . Unused Backups 2 | . . . . 2 Power . | . . . . . Propulsion . | . . . . . Utility 1 | . . . . 1 Weapon . | . . . . . Tool/Special 1 | . . . . 1 Average Slot Usage (%) 93 | . 98 99 99 80 Engine 13 | . 14 14 11 13 Leg 23 | . 28 28 22 18 Device 7 | . 5 1 12 13 Storage 12 | . 10 12 19 9 Processor 11 | . 10 14 11 9 Protection 1 | . . . . 3 Energy Gun 17 | . 28 27 11 4 Energy Cannon 3 | . . . 10 4 Peak Build Rating 22 | 6 7 7 11 22 Average Rating 10 | 4 6 6 10 16 On Entrance 6 | . 6 7 7 11 Avg Prop Armor Cover (%) . | . . . . . Naked Turns . | . . . . . Heaviest Build 33 | 14 15 14 19 33 Greatest Support 42 | 20 20 20 23 42 Greatest Overweight (x) 4 | 4 . . . 2 Average Overweight (x) . | 1 . . . . Largest Inventory Capacity 8 | 8 8 8 8 8 Average Capacity 7 | 7 7 7 8 7 Most Carried 8 | 1 7 8 8 8 Average Carried 6 | . 3 7 7 6 Final Capacity 8 | 8 8 8 8 5 Final Carried 8 | 1 7 8 8 5 Class Distribution -------------------- 81% | Mutant 18% | Scavenger-Mutant Dominant Class ---------------- Mutant | -10/Materials Mutant | -10/Mines Mutant | -9/Materials Mutant | -8/Materials Resources | -11 -10 -10 -9 -8 ----------- Run | Yrd Mat Min Mat Mat Matter Collected 933 | 214 126 175 150 268 Remotely . | . . . . . Salvage Created 2014 | . 169 296 387 1162 Parts 81 | . 3 9 26 43 Haulers Intercepted . | . . . . . Recyclers Shooed 1 | . . . . 1 Parts Field Recycled . | . . . . . Retrieved Matter . | . . . . . Parts Self-Destructed . | . . . . . Prevented . | . . . . . Parts Restored . | . . . . . Kills | -11 -10 -10 -9 -8 ------- Run | Yrd Mat Min Mat Mat Combat Hostiles Destroyed 47 | . 4 9 9 25 Melee 6 | . . . . 6 Guns 22 | . 4 8 1 9 Cannons 13 | . . . 8 5 AOE 1 | . . . . 1 Classes Destroyed 7 | . 1 1 2 3 Recycler 2 | . . . . 2 Watcher 1 | . . . 1 . Swarmer 11 | . . 4 . 7 Grunt 27 | . 4 5 8 10 Sentry 6 | . . . 1 5 Specialist 2 | . . . . 2 Hunter 1 | . . . . 1 Best Kill Streak 6 | . 2 3 6 5 Combat Bots Only 5 | . 2 3 5 5 Max Kills in Single Turn 2 | . 1 1 1 2 Gunslinging . | . . . . . Exploded 1 | . . . . 1 Melee 1 | . . . . 1 Uniques/NPCs Destroyed . | . . . . . Combat | -11 -10 -10 -9 -8 -------- Run | Yrd Mat Min Mat Mat Hostile Shots Fired 308 | . 23 66 29 190 Missed 86 | . 8 21 7 50 Hits 222 | . 15 45 22 140 Projectile 222 | . 15 45 22 140 Critical Strikes 8 | . . 1 . 7 Damage Taken 2920 | . 188 480 250 2002 Core 748 | . 44 84 56 564 Absorbed by Shields . | . . . . . Regen/Repaired (Parts) 68 | . . . 68 . Core Remaining (%) 78 | 100 . 48 86 . Volleys Fired 117 | . 17 30 19 51 Largest 2 | . 2 2 2 2 Hottest 118 | . 100 100 118 118 Shots Fired 218 | . 34 55 36 93 Gun 171 | . 34 55 17 65 Cannon 46 | . . . 19 27 Launcher 1 | . . . . 1 Special . | . . . . . Kinetic 44 | . . . . 44 Thermal 173 | . 34 55 36 48 Explosive . | . . . . . Electromagnetic 1 | . . . . 1 Robot Hit Streak 16 | . 6 10 7 16 Robot Miss Streak 4 | . 3 4 2 1 Penetration Max . | . . . . . Secondary Targets 4 | . . 1 . 3 Max Gunslinging Chain 1 | . . 1 . 1 Shots Hit Robots 189 | . 23 36 28 102 Core Hits 67 | . 9 14 13 31 Critical Kills . | . . . . . Critical Parts Destroyed 8 | . . . . 8 Critical Strikes 20 | . 4 5 1 10 Burn 10 | . 4 5 1 . Smash 10 | . . . . 10 Melee Attacks 40 | . . . . 40 Impact 40 | . . . . 40 Slashing . | . . . . . Piercing . | . . . . . Sneak Attacks 1 | . . . . 1 Combat Hostiles . | . . . . . Follow-up Attacks . | . . . . . Damage Inflicted 3299 | . 285 468 465 2081 Guns 1556 | . 285 468 175 628 Cannons 616 | . . . 290 326 Explosions 72 | . . . . 72 Melee 1055 | . . . . 1055 Ramming . | . . . . . Kinetic 422 | . . . . 422 Thermal 1750 | . 285 468 465 532 Explosive . | . . . . . Electromagnetic 72 | . . . . 72 Impact 1055 | . . . . 1055 Slashing . | . . . . . Piercing . | . . . . . Highest Corruption . | . . . . . Average Corruption . | . . . . . Corruption Purged . | . . . . . Corruption Blocked . | . . . . . Overload Shots . | . . . . . Overflow Damage 418 | . . . . 418 Projectiles 13 | . . . . 13 Explosions . | . . . . . Melee 405 | . . . . 405 Knockbacks 2 | . . . . 2 Impact 2 | . . . . 2 Kinetic . | . . . . . Secondary . | . . . . . Self-Inflicted Damage . | . . . . . Shots . | . . . . . Rammed . | . . . . . Targets Rammed . | . . . . . Kicked . | . . . . . Crushed . | . . . . . Highest Temperature 189 | . 120 132 186 189 Average Temperature 58 | . 50 55 71 58 Received Heat Transfer 1221 | . 105 180 126 810 Siege Activations . | . . . . . Martial Activations . | . . . . . Shielding Activations . | . . . . . Robots Disrupted . | . . . . . Combat Hostiles . | . . . . . Robots Corrupted 5 | . . . . 5 Combat Hostiles 4 | . . . . 4 Parts Fried 8 | . . . . 8 Impact Corruptions 16 | . . . . 16 Robots Melted 1 | . . 1 . . Combat Hostiles 1 | . . 1 . . Parts Melted 21 | . 7 7 4 3 Heat Transferred 5159 | . 1147 1717 1110 1185 Parts Sabotaged . | . . . . . Parts Stolen . | . . . . . Parts Stripped . | . . . . . Power Chain Reactions . | . . . . . Alert | -11 -10 -10 -9 -8 ------- Run | Yrd Mat Min Mat Mat Maximum Alert Level 1 | . . . . 1 Low Security (%) 88 | 100 100 100 100 65 Level 1 11 | . . . . 34 Level 2 . | . . . . . Level 3 . | . . . . . Level 4 . | . . . . . Level 5 . | . . . . . High Security . | . . . . . Max Security . | . . . . . Peak Influence 299 | . 50 78 198 299 Initial 70 | . . 8 19 70 Average 63 | . 10 24 65 136 Influence Increases 1403 | . 122 291 308 682 Destroy 0b10 Robot/C 1040 | . 80 240 220 500 Destroy 0b10 Robot/NC 25 | . . 5 10 10 Destroy Leader 214 | . 20 40 44 110 Allied During Kill 9 | . . 6 3 . Successful Hack 37 | . 21 . . 16 Destroy Structure 3 | . 1 . 1 1 Lose Combat Pursuer 75 | . . . 30 45 Influence Decreases 1148 | . 99 264 190 595 Entered New Map 144 | . . 15 31 98 Time Decay 814 | . 99 239 139 337 Lost Part 170 | . . 10 . 160 Lost Ally 20 | . . . 20 . Squads Dispatched 9 | . 2 . 2 5 Investigation 4 | . 1 . 1 2 Extermination . | . . . . . Reinforcement 5 | . 1 . 1 3 Assault . | . . . . . Garrison . | . . . . . Intercept . | . . . . . Searches Triggered . | . . . . . Construction Impeded . | . . . . . Haulers Reinforced . | . . . . . Active Scanning Responses . | . . . . . Cargo Convoy Interrupts . | . . . . . Stealth | -11 -10 -10 -9 -8 --------- Run | Yrd Mat Min Mat Mat Distress Signals 5 | . 2 . . 3 Communications Jammed . | . . . . . Distress Signals . | . . . . . Times Spotted 75 | . 8 12 17 38 Peak Tracking Total 7 | . 3 3 6 7 Tactical Retreats 5 | . . . 2 3 Traps | -11 -10 -10 -9 -8 ------- Run | Yrd Mat Min Mat Mat Traps Triggered 3 | . . . 2 1 Indirectly . | . . . . . Trap Hack Attempts . | . . . . . Triggered . | . . . . . Disarmed . | . . . . . Reprogrammed . | . . . . . Reused . | . . . . . Traps Extracted . | . . . . . Installed . | . . . . . Triggered . | . . . . . Machines | -11 -10 -10 -9 -8 ---------- Run | Yrd Mat Min Mat Mat Machines Disabled . | . . . . . Max in Single Turn . | . . . . . Machines Repaired . | . . . . . Machines Dismantled . | . . . . . Machines Sabotaged . | . . . . . Overloaded Fab Kills . | . . . . . Hacking | -11 -10 -10 -9 -8 --------- Run | Yrd Mat Min Mat Mat Machines Accessed 12 | . 6 . 1 5 Terminals 9 | . 5 . . 4 Fabricators . | . . . . . Repair Stations 1 | . . . 1 . Recycling Units 1 | . 1 . . . Scanalyzers . | . . . . . Garrison Access 1 | . . . . 1 Total Hacks 32 | . 16 . 2 14 Successful 11 | . 6 . 2 3 Failed 21 | . 10 . . 11 Catastrophic 4 | . 2 . . 2 Database Lockouts . | . . . . . Manual 25 | . 13 . . 12 Terminals 27 | . 15 . . 12 Fabricators . | . . . . . Repair Stations 2 | . . . 2 . Recycling Units 1 | . 1 . . . Scanalyzers . | . . . . . Garrison Access 2 | . . . . 2 Terminal Hacks 6 | . 5 . . 1 Part Schematic 1 | . 1 . . . Robot Analysis 1 | . 1 . . . Branch Access Points 2 | . 1 . . 1 Emergency Access Points 1 | . 1 . . . Hauler Manifests 1 | . 1 . . . Fabricator Hacks . | . . . . . Repair Station Hacks 2 | . . . 2 . Scan Component 1 | . . . 1 . Repair 1 | . . . 1 . Recycling Unit Hacks 1 | . 1 . . . Retrieve Components 1 | . 1 . . . Scanalyzer . | . . . . . Garrison Access Hacks . | . . . . . Unauthorized Hacks 2 | . . . . 2 Terminals 2 | . . . . 2 Botnet 2 | . . . . 2 Fabricators . | . . . . . Repair Stations . | . . . . . Recycling Units . | . . . . . Scanalyzers . | . . . . . Garrison Access . | . . . . . Data Cores Recovered . | . . . . . Used . | . . . . . Hacking Detections 11 | . 5 . 1 5 Full Trace Events 2 | . 1 . . 1 Feedback Events . | . . . . . Feedback Blocked . | . . . . . Robot Schematics Acquired . | . . . . . Robots Built . | . . . . . Authchips . | . . . . . Time . | . . . . . Total Robot Build Rating . | . . . . . Part Schematics Acquired 1 | . 1 . . . Parts Built . | . . . . . Authchips . | . . . . . Time . | . . . . . Total Part Build Rating . | . . . . . Part Studies Acquired . | . . . . . Parts Repaired 1 | . . . 1 . Time 26 | . . . 26 . Parts Recycled . | . . . . . Recycled Matter . | . . . . . Retrieved Matter . | . . . . . Retrieved Components 2 | . 2 . . . Parts Scanalyzed . | . . . . . Part Schematics Acquired . | . . . . . Parts Damaged . | . . . . . Bothacking | -11 -10 -10 -9 -8 ------------ Run | Yrd Mat Min Mat Mat Used RIF Installer . | . . . . . Robots Hacked . | . . . . . Non-combat . | . . . . . Combat . | . . . . . Robot Hacks Applied . | . . . . . Relay Couplers Released . | . . . . . Fabnet Peak Effective % . | . . . . . Robots Rewired . | . . . . . Allies Hacked . | . . . . . Hacks Repelled . | . . . . . Allies | -11 -10 -10 -9 -8 -------- Run | Yrd Mat Min Mat Mat Total Allies 3 | . . 3 . . Largest Group 3 | . . 3 1 . Highest-Rated Group 40 | . . 40 16 . Highest-Rated Ally 16 | . . 16 16 . Total Orders . | . . . . . Ally Attacks 27 | . . 19 8 . Total Damage 261 | . . 181 80 . Kills 9 | . . 6 3 . Allies Corrupted . | . . . . . Allies Melted . | . . . . . Intel | -11 -10 -10 -9 -8 ------- Run | Yrd Mat Min Mat Mat Active Infowar (turns) 56 | . 56 . . . Terrain 56 | . 56 . . . Robot Analysis Total 1 | . 1 . . . Derelict Logs Recovered 1 | . . 1 . . Drone Launches . | . . . . . Drone Recoveries . | . . . . . Exploration | -11 -10 -10 -9 -8 ------------- Run | Yrd Mat Min Mat Mat Turns Passed 2368 | 71 415 747 364 771 Spaces Moved 1377 | 39 278 464 190 406 Core 166 | 19 . . . 147 Treads . | . . . . . Legs 1211 | 20 278 464 190 259 Wheels . | . . . . . Hover . | . . . . . Flight . | . . . . . Fastest Speed 50 | 50 120 120 120 50 Average Speed 116 | 158 120 120 120 103 Slowest Speed 250 | 250 120 120 120 190 Overloaded Moves . | . . . . . Propulsion Burnouts . | . . . . . Robots Hopped . | . . . . . Potential Cave-ins . | . . . . . Cave-ins Triggered . | . . . . . Exploration Rate (%) 45 | 3 52 95 29 47 Regions Visited 4 Branch Regions 1 Pre-discovered Areas 1 | . . 1 . . Known Exits Taken 1 | . 1 . . . Unknown Exits Taken 3 | 1 . 1 1 . Scrap Searched 1 | . . 1 . . Spaces Dug . | . . . . . Terrain Destroyed . | . . . . . Melee . | . . . . . Projectile . | . . . . . AOE . | . . . . . Terrain Rammed . | . . . . . Walls Destroyed . | . . . . . Machines Disabled . | . . . . . Actions | -11 -10 -10 -9 -8 --------- Run | Yrd Mat Min Mat Mat Total 1842 | 45 322 597 289 589 Wait 185 | . 13 71 53 48 Move 1373 | 38 277 463 189 406 Hop . | . . . . . Pick Up 22 | 1 5 5 4 7 Fast Attach 20 | 6 3 2 4 5 Attach 13 | . . . 2 11 Detach 6 | . . . 1 5 Swap 38 | . 5 16 9 8 Drop 28 | . 2 10 8 8 Fire 117 | . 17 30 19 51 Melee 40 | . . . . 40 Ram . | . . . . . Kick . | . . . . . Crush . | . . . . . Escape Stasis . | . . . . . Rewire . | . . . . . Trap . | . . . . . Miscellaneous . | . . . . . Route ------- -11/Scrapyard -10/Materials (discovered 3 exits: *Mat / *Min x2) -10/Mines (discovered 2 exits: *Mat x2) -9/Materials -8/Materials (discovered 1 exit: [*Fac]) History --------- Turn | Location | Event 18 | -11/Scrapyard | Discovered new exit (range 15) 72 | -11/Scrapyard | Entered Materials 215 | -10/Materials | Discovered new exit (range 9) 318 | -10/Materials | Build established: Mutant 402 | -10/Materials | Discovered new exit (range 6) 464 | -10/Materials | Identified exit to Mines 487 | -10/Materials | Entered Mines 503 | -10/Mines | Met a Derelict bent on vengeance 590 | -10/Mines | Learned location of Storage (-7) 650 | -10/Mines | Discovered new exit (range 9) 712 | -10/Mines | Assisted by bots powering up and referring to "LRC-V3" 833 | -10/Mines | Excavation squad dispatched 833 | -10/Mines | A large section of the Mines collapsed 965 | -10/Mines | Discovered new exit (range 11) 1181 | -10/Mines | Core integrity fell below 50% 1234 | -10/Mines | Entered Materials 1234 | -9/Materials | Accompanied by 1 ally 1234 | -9/Materials | Evolved 2 slots: Utility x2 1287 | -9/Materials | Repaired Med. Laser 1595 | -9/Materials | Discovered new exit (range 4) 1598 | -9/Materials | Entered another Materials area 1598 | -8/Materials | Evolved 2 slots: Power x1, Propulsion x1 2171 | -8/Materials | Lost 11 parts (2p5n2u2w) 2230 | -8/Materials | Core integrity fell below 50% 2286 | -8/Materials | Core integrity fell below 20% 2360 | -8/Materials | Discovered new exit (range 16) 2369 | -8/Materials | Destroyed by G-47 Trooper with Particle Gun Last Messages --------------- 02294_ R-06 Scavenger destroyed. 02296_ G-47 Trooper suffers critical hit (Smash). 02296_ Destroyed Aluminum Leg. 02296_ G-47 Trooper system corrupted by crushing effect. 02297_ G-47 Trooper misfires. 02299_ G-47 Trooper destroyed. 02321_ K-01 Serf collects debris. 02322_ R-06 Scavenger collects Corrupted Lgt. Nuclear Core. 02326_ K-01 Serf collects debris. 02326_ R-06 Scavenger collects Corrupted Imp. Heat Sink. 02330_ K-01 Serf collects debris. 02332_ R-06 Scavenger collects Corrupted Aluminum Leg. 02354_ Acquired 15 matter. 02360_ Adv. Weight Redist. System destroyed. 02360_ EXIT=FOUND 02362_ Triggered Alarm Trap. 02362_ An alarm sounds. 02362_ ALERT: Alarm triggered, dispatching investigation squad. 02362_ Slug penetrates Wall. 02365_ Sml. Storage Unit destroyed. Map ----- +----------------------------------------------------+ | | | | | | | | | ?????????????????????????????????????????????????? | | ?????????????????????????????????????????????????? | | ?????????????????????????????????????????????????? | | ?????????????????????????????????????????????????? | | ?????????????????????????????????????????????????? | | ?????????????????????????????????????????????????? | | ?????????????????????????????????????????????????? | | ?????????????????????????????????????????????????? | | ?????????????????????????????????????????????????? | | ?????????????????????????????????????????????????? | | ?????????????????????????????????????????????????? | | ?????????????????????????????????????????????????? | | ?????????????????????????????????????????????????? | | ?????????????????????????????????????????????????? | | ########????????????????#####????????????????????? | | #????????????????# #????????????????????? | | """ T #????????????????# < ####?????????????????? | | """ #????????????????# #Y ??????????????????? | | """ #????????????????/ggH/ ???????????????????? | | ! #????????????????# #????????????????????? | | """ #????????????????# #????????????????????? | | """ #????????????????#@ #????????????????????? | | """ #????????????????# #????????????????????? | | #????????????????# #????????????????????? | | ##################??????# #????????????????????? | | =[ + ######## #????????????????????? | | !%= # # ! # #????????????????????? | | * % # # # #????????????????????? | | ####### + # #[ #????????????????????? | | #?????# # # # #????????????????????? | | #?????# #?? # # #????????????????????? | | #????## ##?##### % # #????????????????????? | | #????# ##########+### ###### ####??????????? | | #????# %%% % r ?????????? | | #????# % ?????????? | | #????#! ?????????? | | ?????# ########+####% ;############?????????? | | ?????## ##?????? ]?# %"#????????????????????? | | ??????# #??????? # ##????????????????????? | | ??????# #??????? # #?????????????????????? | | ??????# #??????? !]# #?????????????????????? | | ??????# #?????? ! # #?????????????????????? | | ??????# #?????? # #?????????????????????? | | ??????# #?????? # #?????????????????????? | | ??????# #??????## #### ##????????????????????? | | ####### ############# %#????????????????????? | +----------------------------------------------------+ Best States ------------- Heat Dissipation 58 Energy Generation 23 Energy Capacity 400 Matter Stores 300 Matter Capacity 300 Sight Range 16 Terrain Scan Range 14 Terrain Scan Density 10 Additional Mass Support 9 Armor Coverage 225 Evasion (%) 55 Targeting Accuracy 6 Recoil Reduction 4 Item Schematics ----------------- Heat Sink | -10/Materials | Hacked Robot Schematics ------------------ None Fabricated ------------ Nothing Repaired ---------- Med. Laser | 2% | -9/Materials Studied --------- None Alien Tech Used ----------------- None Achievements -------------- None Challenges ------------ None Game ------ Seed WaveMinesnifferScrapsphere Manual? 0 Play Time 00:30:01 Cumulative 171.9 hours Start 2026.09.07 @ 18:31:36 End 2026.09.07 @ 19:00:32 Sessions 1 Manual Loads 0 Difficulty Rogue Special Mode None Game No. 167 Rogue 164 Adventurer 1 Explorer 2 Win Type - Total 1 Types 1/0/0/0/0/0/0/0/0/0 Lore% 57 Gallery% 58 Achievement% 36 Wizard Run 0 Options --------- Layout 0 ASCII 0 Keyboard 0 Movement Mouse Keybinds 0 Fullscreen 2 Font 24/Smallcaps Map View 76x50 Zoom Use 0% Tactical HUD 1 Map Filters NONE Filters NONE Steam 1 RUN: 80a49e27-5802-4d5a-97e2-da32919a1564